bitfinex-derivatives/quotes_ETHF0:USTF0_20251116
["timestamp","ask_amount","ask_price","bid_price","bid_amount"]
[1763261050912,0.2520142,3188.4,3188.3,0.00257322]
[1763261051318,0.2520142,3188.4,3188.3,0.25127322]
[1763261051613,0.0037142,3188.4,3188.3,0.25127322]
[1763261052415,0.2520142,3188.4,3188.3,0.00257322]
[1763261057924,3.2078,3188.0,3186.6,1.09954996]
[1763261058119,3.2078,3186.8,3186.0,0.1378]
[1763261058317,3.2078,3186.5,3186.0,0.3868]
[1763261058512,3.2078,3186.9,3186.8,0.249]
[1763261058922,3.2078,3186.9,3186.8,0.2516255]
[1763261060820,3.2078,3186.9,3186.8,0.0026255]
[1763261061322,3.2078,3186.9,3186.5,0.14250751]
[1763261062422,3.2078,3186.9,3186.5,0.14483884]
[1763261067626,3.207,3186.9,3186.5,0.14483884]
[1763261068022,3.207,3186.9,3186.5,0.00703884]
[1763261068222,3.207,3186.9,3186.0,0.1378]
[1763261068420,3.2078,3186.2,3186.1,0.249]
[1763261069227,3.2078,3186.2,3186.1,0.2516426]
[1763261073223,3.2078,3186.6,3186.5,0.5102]
[1763261073527,1.12541311,3188.3,3186.5,0.1846]
[1763261073830,0.3044,3188.3,3188.2,3.2078]
[1763261074028,0.3044,3188.3,3188.2,2.5469314]
[1763261075225,0.0037142,3188.4,3188.2,2.8725314]
[1763261076130,0.3044,3188.3,3188.2,2.5469314]
[1763261077327,0.0346,3188.7,3188.2,2.5469314]
[1763261077328,1.12541311,3189.6,3189.0,0.3256]
[1763261077533,3.2078,3189.7,3189.0,3.5334]
[1763261077732,0.09991923,3190.1,3190.0,0.3256]
[1763261077922,3.2078,3191.3,3190.9,0.3256]
[1763261078127,0.1978,3191.5,3190.9,3.5334]
[1763261078328,0.20065502,3191.5,3190.9,3.21174095]
[1763261078525,0.20065502,3191.5,3190.9,3.21644846]
[1763261079130,0.00285502,3191.5,3191.4,0.3256]
[1763261079335,0.30725502,3191.5,3191.4,3.2078]
[1763261079838,0.00285502,3191.5,3191.4,3.2078]
[1763261080041,0.00285502,3191.5,3191.4,3.5334]
[1763261080526,0.30725502,3191.5,3191.4,3.2078]
[1763261080836,0.3044,3191.0,3190.9,0.00864846]
[1763261084245,0.1978,3190.2,3190.1,3.2078]
[1763261084537,0.5022,3190.2,3189.5,3.2078]
[1763261084739,0.1978,3189.6,3189.5,3.2078]
[1763261085033,0.1978,3190.2,3189.5,3.5334]
[1763261085237,0.1978,3190.2,3189.5,3.54178938]
[1763261085238,0.20248268,3190.2,3189.5,3.54178938]
[1763261085844,3.2078,3191.8,3190.2,0.173]
[1763261086138,3.2078,3191.8,3190.8,3.2078]
[1763261086338,3.2078,3191.8,3190.8,3.3002]
[1763261086735,3.2078,3191.8,3191.4,0.3256]
[1763261086936,3.2078,3191.9,3191.4,0.3256]
[1763261087741,3.2078,3191.9,3191.4,1.00013687]
[1763261087946,3.2078,3191.9,3191.4,0.67453687]
[1763261088437,0.3044,3191.2,3190.8,3.2078]
[1763261088643,0.1978,3190.8,3189.6,0.1846]
[1763261088847,0.1978,3190.8,3189.7,3.2078]
[1763261089036,3.2078,3190.9,3190.2,0.1846]
[1763261089443,0.1978,3190.8,3190.1,3.2078]
[1763261089644,0.3044,3190.3,3190.2,0.00470006]
[1763261089857,0.1978,3190.8,3190.2,0.00470006]
[1763261090153,3.21250006,3190.9,3190.2,0.18930006]
[1763261090655,0.1978,3190.8,3190.2,0.00470006]
[1763261091356,3.21250006,3190.9,3190.2,0.18930006]
[1763261091653,0.00470006,3190.9,3190.5,3.2078]
[1763261092353,0.03210306,3190.7,3190.6,0.3256]
[1763261092552,0.03210306,3190.7,3190.5,3.2078]
[1763261092754,0.03116803,3190.6,3190.5,3.2078]
[1763261093347,0.03116803,3190.6,3190.5,3.5334]
[1763261093756,0.0632712,3190.6,3190.5,3.5334]
[1763261093950,0.0632712,3190.6,3190.5,3.2078]
[1763261094150,0.08551287,3190.6,3190.5,3.2078]
[1763261094550,0.08551287,3190.6,3190.5,3.5334]
[1763261096755,1.287e-05,3190.6,3190.5,3.5334]
[1763261097054,0.00470006,3190.9,3190.8,0.5102]
[1763261097256,0.00470006,3190.9,3190.8,0.55241992]
[1763261099845,0.00470006,3190.9,3190.8,0.36781992]
[1763261100050,0.00470006,3190.9,3190.8,0.04221992]
[1763261100953,0.00470006,3190.9,3190.8,0.71211992]
[1763261101254,0.00470006,3190.9,3190.8,0.04221992]
[1763261101255,0.44000006,3190.9,3190.8,0.04221992]
[1763261102360,3.64780006,3190.9,3190.8,0.04221992]
[1763261102557,9.64780006,3190.9,3190.8,0.04221992]
[1763261102857,0.4353,3190.3,3190.2,0.00470006]
[1763261103254,0.4507444,3190.3,3190.2,0.00470006]
[1763261103655,0.46618883,3190.3,3190.2,0.00470006]
[1763261104156,0.46618883,3190.3,3190.2,0.41560006]
[1763261104157,0.03088883,3190.3,3190.2,0.41560006]
[1763261104354,0.46618883,3190.3,3190.2,0.00470006]
[1763261104859,3.67398883,3190.3,3190.2,0.00470006]
[1763261107465,3.6431,3190.3,3190.2,0.01709131]
[1763261107663,0.4353,3189.7,3189.6,3.2078]
[1763261107855,0.4353,3189.7,3188.1,6.40077927]
[1763261107856,0.696,3189.6,3189.2,3.2078]
[1763261108263,0.2607,3190.2,3189.8,0.4109]
[1763261108466,0.4345,3189.7,3189.6,3.2078]
[1763261108966,0.696,3189.6,3189.3,0.00470006]
[1763261110365,0.4353,3189.6,3189.3,0.00470006]
[1763261111356,3.2078,3189.9,3189.3,0.00470006]
[1763261111961,0.2607,3190.2,3189.3,0.00470006]
[1763261111962,0.2607,3190.2,3189.6,0.259]
[1763261113769,0.2607,3190.2,3189.3,0.00470006]
[1763261113970,0.4048,3189.6,3189.3,0.00470006]
[1763261117467,0.2607,3190.2,3189.5,0.40618932]
[1763261117667,0.4048,3189.6,3189.5,0.00368932]
[1763261123285,0.4048,3189.4,3189.3,0.00470006]
[1763261124179,0.4048,3189.4,3189.3,0.00783596]
[1763261124785,0.4048,3189.4,3189.3,3.596e-05]
[1763261126378,6.4048,3189.4,3189.3,3.596e-05]
[1763261128584,7.2477562,3189.4,3189.3,3.596e-05]
[1763261128783,0.3866,3188.4,3187.9,3.2078]
[1763261128979,15.7836,3188.4,3187.9,3.2078]
[1763261129783,15.78703125,3188.4,3187.9,3.21181917]
[1763261130978,0.00343125,3188.4,3188.3,3.6197]
[1763261133372,0.8428253,3189.8,3189.7,0.4119]
[1763261133582,3.2078,3190.4,3189.7,0.4119]
[1763261134373,3.2158336,3190.4,3189.7,0.41660006]
[1763261134783,0.3866,3190.1,3190.0,0.04316782]
[1763261139777,0.3866,3189.8,3189.7,0.00470006]
[1763261141787,0.3866,3188.9,3188.8,3.6197]
[1763261141996,3.4521,3189.5,3188.8,3.6197]
[1763261142389,0.3866,3188.9,3188.8,3.2078]
[1763261143196,0.3866,3188.9,3188.5,0.00470006]
[1763261143796,0.3866,3188.9,3188.5,0.23230006]
[1763261143993,3.2078,3189.8,3189.7,0.4119]
[1763261144194,3.2078,3190.3,3189.7,0.4119]
[1763261145196,0.3866,3190.1,3190.0,0.04316782]
[1763261149799,0.3858,3190.1,3190.0,0.04316782]
[1763261152699,3.2078,3190.2,3189.3,3.2078]
[1763261152700,0.1911,3190.0,3189.3,3.6197]
[1763261155400,0.1911,3190.0,3189.6,0.04316782]
[1763261156500,0.3866,3189.9,3189.8,0.04316782]
[1763261158300,15.4000336,3190.4,3189.8,0.45506782]
[1763261158601,0.3401,3190.2,3190.1,0.04316782]
[1763261159901,3.5479,3190.2,3190.1,0.04316782]
[1763261161193,3.5479,3190.2,3189.5,3.2078]
[1763261161194,0.3401,3189.6,3189.5,3.2078]
[1763261165804,0.3401,3189.6,3189.5,3.25096782]
[1763261167611,0.3401,3189.6,3189.5,0.04316782]
[1763261169212,0.3401,3189.6,3188.6,0.82158309]
[1763261169511,4.96976707,3189.7,3188.5,0.23230006]
[1763261169512,0.1511,3189.0,3188.5,0.59920006]
[1763261169705,15.4991,3189.0,3188.5,0.59920006]
[1763261169902,0.3401,3188.6,3188.5,0.59920006]
[1763261170100,15.4991,3189.0,3188.5,0.59920006]
[1763261171610,0.3401,3188.6,3188.5,0.00470006]
[1763261171810,15.6841,3188.6,3188.5,0.57720006]
[1763261172312,15.6841,3188.6,3188.5,0.00470006]
[1763261172907,18.8919,3188.6,3188.5,0.00470006]
[1763261184018,18.8919,3188.6,3188.5,6e-08]
[1763261185219,28.7379,3188.6,3188.5,6e-08]
[1763261185418,29.58338743,3188.6,3188.5,6e-08]
[1763261186213,28.7379,3188.6,3188.5,6e-08]
[1763261186413,29.58338743,3188.6,3188.5,6e-08]
[1763261187019,28.7379,3188.6,3188.5,6e-08]
[1763261188023,29.86166707,3188.6,3188.5,6e-08]
[1763261188324,28.7379,3188.6,3188.5,6e-08]
[1763261189525,0.4408,3188.0,3187.9,1.923e-05]
[1763261189720,18.9756,3188.0,3187.9,1.923e-05]
[1763261190223,20.09831257,3188.0,3187.9,1.923e-05]
[1763261190619,20.10151365,3188.0,3187.9,1.923e-05]
[1763261190821,20.10071365,3188.0,3187.9,1.923e-05]
[1763261191122,18.97800108,3188.0,3187.9,1.923e-05]
[1763261191624,22.82400108,3188.0,3187.9,1.923e-05]
[1763261193428,23.94671365,3188.0,3187.9,1.923e-05]
[1763261193723,0.3402,3186.7,3186.2,3.2078]
[1763261193927,0.3402,3186.3,3186.2,3.516]
[1763261194119,0.55,3186.3,3186.2,3.516]
[1763261194824,0.00470773,3186.6,3186.5,0.5014]
[1763261197424,0.34490773,3186.6,3186.5,0.5014]
[1763261199822,0.00470773,3186.6,3186.5,0.5014]
[1763261200324,0.34490773,3186.6,3186.5,0.5014]
[1763261200532,0.00470773,3186.6,3186.5,0.5014]
[1763261202230,3.2078,3187.5,3187.4,0.3082]
[1763261202531,3.2078,3187.9,3187.8,0.3082]
[1763261202725,3.548,3187.9,3187.8,0.3082]
[1763261203724,4.088e-05,3188.5,3187.9,6.0]
[1763261203936,1.68656726,3189.6,3188.4,3.2078]
[1763261204230,3.2078,3189.9,3189.4,3.2078]
[1763261204432,0.5334,3189.5,3189.4,3.2078]
[1763261204823,0.53570037,3189.5,3189.4,3.21185601]
[1763261205027,0.19550037,3189.5,3189.4,3.21185601]
[1763261206433,0.19550037,3189.5,3189.4,9.25502383]
[1763261206623,0.00230037,3189.5,3189.4,9.25502383]
[1763261207031,0.19550037,3189.5,3189.4,9.25502383]
[1763261207734,0.19550037,3189.5,3189.4,3.25502383]
[1763261208826,0.53570037,3189.5,3189.4,3.25502383]
[1763261209926,0.19550037,3189.5,3189.4,3.25502383]
[1763261211225,0.53570037,3189.5,3189.4,3.25502383]
[1763261217639,0.19550037,3189.5,3189.4,3.25502383]
[1763261217832,0.53570037,3189.5,3189.4,3.25502383]
[1763261219730,0.354,3188.7,3188.6,3.2078]
[1763261220340,0.2098,3189.0,3186.8,1.07964]
[1763261220341,0.354,3188.2,3188.1,3.2078]
[1763261220636,0.354,3188.2,3188.1,3.21023157]
[1763261220840,0.21450773,3188.5,3188.1,3.21023157]
[1763261222036,0.00470773,3188.5,3188.1,3.21023157]
[1763261222237,7.73e-06,3188.5,3188.2,6.0]
[1763261222632,7.73e-06,3188.5,3188.1,3.21023157]
[1763261223036,7.73e-06,3188.5,3188.1,9.21023157]
[1763261223745,7.73e-06,3188.5,3188.2,6.0]
[1763261224239,7.73e-06,3188.5,3188.3,6.0]
[1763261224440,7.73e-06,3188.5,3188.1,3.21023157]
[1763261224641,7.73e-06,3188.5,3188.2,6.0]
[1763261224843,7.73e-06,3188.5,3188.1,3.21023157]
[1763261225038,7.73e-06,3188.5,3188.2,6.0]
[1763261225549,7.73e-06,3188.5,3188.3,6.0]
[1763261225750,7.73e-06,3188.5,3188.4,0.04316782]
[1763261229245,7.73e-06,3188.5,3188.4,15.38416782]
[1763261229442,7.73e-06,3188.5,3188.4,21.38416782]
[1763261229956,7.73e-06,3188.5,3188.4,0.04316782]
[1763261230342,7.73e-06,3188.5,3188.4,6.04316782]
[1763261231352,0.20900773,3189.0,3188.4,0.04316782]
[1763261231647,0.20900773,3189.0,3188.9,3.2078]
[1763261232748,0.20900773,3189.0,3188.9,3.25096782]
[1763261234150,2.24875635,3190.5,3189.3,3.2078]
[1763261234351,0.2146,3190.5,3190.4,3.2078]
[1763261234852,0.2146,3190.5,3190.4,3.25096782]
[1763261235040,0.5673,3190.5,3190.4,3.25096782]
[1763261235348,0.56985018,3190.5,3190.4,3.25352265]
[1763261235943,0.21715018,3190.5,3190.4,3.29669047]
[1763261238452,0.56985018,3190.5,3190.4,3.29669047]
[1763261239749,0.3527,3190.2,3190.1,0.00470773]
[1763261240045,0.3527,3190.1,3190.0,0.45657768]
[1763261240353,0.3527,3189.7,3189.6,3.2078]
[1763261240756,0.3527,3189.7,3189.6,3.21121729]
[1763261243450,0.3527,3189.7,3189.6,0.00341729]
[1763261243850,0.21715018,3190.5,3189.7,6.0]
[1763261244158,0.21715018,3190.5,3190.3,3.2078]
[1763261246354,0.21715018,3190.5,3190.4,0.04316782]
[1763261248155,0.00255018,3190.5,3190.4,0.04316782]
[1763261249054,0.28655018,3190.5,3190.4,0.04316782]
[1763261251553,3.2078,3191.2,3190.5,6.0]
[1763261251762,0.2146,3191.5,3191.1,3.2078]
[1763261252248,0.2146,3191.5,3191.3,0.04316782]
[1763261252645,0.21770387,3191.5,3191.3,0.04316782]
[1763261253257,0.00310387,3191.5,3191.3,0.04316782]
[1763261253446,0.28710387,3191.5,3191.4,0.04316782]
[1763261254250,0.76990387,3191.5,3191.4,0.04316782]
[1763261255166,0.28710387,3191.5,3191.4,0.04316782]
[1763261255362,3.2078,3192.3,3191.4,0.04316782]
[1763261255556,3.2078,3193.3,3192.1,3.2078]
[1763261255756,0.284,3193.5,3192.7,3.2078]
[1763261256263,0.284,3193.0,3192.7,3.2078]
[1763261256454,0.28664217,3193.0,3192.8,0.04316782]
[1763261257261,0.4828,3192.9,3192.8,0.04316782]
[1763261257765,0.284,3192.5,3191.9,3.2078]
[1763261258166,0.28664217,3193.0,3192.4,3.2078]
[1763261258458,0.28664217,3193.0,3192.8,3.2078]
[1763261258660,0.28664217,3193.0,3192.8,3.21040579]
[1763261258967,0.00470028,3193.2,3192.8,9.21040579]
[1763261259164,3.2078,3194.2,3192.8,3.21040579]
[1763261259458,0.00775494,3195.3,3192.8,3.21040579]
[1763261259459,0.00775494,3195.3,3193.4,3.2078]
[1763261259662,0.00775494,3195.3,3195.0,3.2078]
[1763261260061,3.4918,3196.0,3195.0,3.2078]
[1763261260252,0.00470028,3195.5,3195.0,3.2078]
[1763261260859,2.8e-07,3195.5,3195.4,3.2078]
[1763261261060,0.00382307,3195.5,3195.4,3.21055617]
[1763261261262,2.307e-05,3195.5,3195.4,3.21055617]
[1763261263968,3.2078,3196.6,3195.4,3.21055617]
[1763261264166,3.2078,3196.6,3196.1,3.2078]
[1763261264666,3.4918,3197.0,3196.1,3.2078]
[1763261265067,0.2871422,3196.5,3196.1,3.2078]
[1763261265968,0.4828,3196.2,3196.1,3.2078]
[1763261266170,0.4828,3195.5,3195.4,0.00275617]
[1763261266368,0.05446099,3197.0,3195.3,3.2078]
[1763261266670,3.2078,3197.2,3196.3,3.2078]
[1763261266868,0.284,3197.4,3196.7,3.2078]
[1763261267062,0.8648413,3196.8,3196.7,3.2078]
[1763261267368,0.4828,3196.4,3196.3,3.2078]
[1763261267872,0.4828,3196.4,3196.3,3.25467104]
[1763261268272,0.00466682,3196.7,3196.3,3.25467104]
[1763261268671,0.00466682,3196.7,3196.5,0.04311953]
[1763261269676,3.2078,3198.1,3196.6,6.0]
[1763261269866,3.2078,3198.1,3197.6,3.2078]
[1763261270569,0.28633058,3198.0,3197.6,3.2078]
[1763261270769,0.28633058,3198.0,3197.8,0.04311953]
[1763261271169,0.4828,3197.9,3197.8,0.04311953]
[1763261271374,0.28633058,3198.0,3197.8,0.04311953]
[1763261271765,0.28633058,3198.0,3197.6,3.2078]
[1763261271766,3.4918,3198.6,3197.6,3.2078]
[1763261272067,0.284,3198.0,3197.9,0.04311953]
[1763261272467,0.7668,3198.0,3197.9,0.04311953]
[1763261272976,0.76915772,3198.0,3197.9,0.04311953]
[1763261273374,0.00235772,3198.0,3197.9,0.04311953]
[1763261273569,0.284,3198.6,3197.9,0.04311953]
[1763261274079,0.284,3198.6,3198.2,0.04311953]
[1763261274275,0.4828,3198.3,3198.2,0.04311953]
[1763261274574,0.48567418,3198.3,3198.2,0.04311953]
[1763261274773,4.59767418,3198.3,3198.2,0.04311953]
[1763261274974,0.4828,3197.9,3197.4,3.2078]
[1763261275174,0.4828,3197.9,3196.3,0.00375151]
[1763261275175,9.1068,3197.9,3197.0,3.2078]
[1763261275468,3.2078,3198.0,3197.0,3.2078]
[1763261275674,0.284,3198.0,3197.9,3.2078]
[1763261276866,0.284,3198.0,3197.9,3.2508727]
[1763261277477,0.00756674,3198.3,3197.9,3.2508727]
[1763261277966,0.00756674,3198.3,3198.1,0.0430727]
[1763261278968,0.00756674,3198.3,3198.2,0.0430727]
[1763261280071,0.0346,3198.7,3198.2,0.0430727]
[1763261280274,0.0346,3198.7,3198.4,3.2078]
[1763261280476,0.284,3199.2,3198.4,3.2078]
[1763261280677,0.284,3199.2,3198.8,3.2078]
[1763261281278,0.28625444,3199.2,3199.0,0.0430727]
[1763261281473,0.5153,3199.1,3199.0,0.0430727]
[1763261281678,0.5153,3198.9,3198.8,0.00254673]
[1763261281881,0.2905,3198.0,3197.7,3.2078]
[1763261282071,0.2905,3198.6,3197.7,3.2078]
[1763261282271,0.2905,3198.6,3198.2,3.2078]
[1763261282577,0.2905,3198.6,3197.6,0.00469256]
[1763261282578,0.2905,3198.6,3197.8,3.2078]
[1763261282774,0.2905,3198.6,3197.8,3.21090723]
[1763261283370,15.553,3198.7,3198.2,3.2078]
[1763261283576,0.00225444,3199.2,3198.6,3.2078]
[1763261283778,0.29275444,3199.2,3199.1,3.2078]
[1763261284073,0.2905,3201.0,3199.1,9.2078]
[1763261284074,3.4983,3200.4,3199.1,9.2078]
[1763261284275,3.4983,3200.4,3199.7,3.2078]
[1763261284982,3.50097441,3200.4,3199.7,3.2078]
[1763261285877,0.2905,3202.8,3200.2,3.2078]
[1763261286178,6.8363848,3205.4,3202.3,3.2078]
[1763261286179,0.09619183,3203.3,3202.3,3.2078]
[1763261286372,2.268,3205.9,3203.2,3.2078]
[1763261286573,2.268,3205.9,3203.0,0.82158309]
[1763261286773,2.268,3205.9,3204.9,3.2078]
[1763261286970,3.2078,3206.3,3204.9,3.21175129]
[1763261286971,0.03187393,3205.1,3204.9,3.21175129]
[1763261287481,0.0039305,3205.2,3204.9,3.21175129]
[1763261288081,0.2905,3204.8,3204.5,3.2078]
[1763261288380,0.2905,3204.8,3204.7,3.2078]
[1763261288979,0.2905,3204.8,3204.7,3.21177244]
[1763261289875,0.30496984,3204.8,3204.7,3.21177244]
[1763261290285,0.31220561,3204.8,3204.7,3.21177244]
[1763261290785,0.31863712,3204.8,3204.7,3.21177244]
[1763261291082,6.2897,3204.8,3204.3,3.2078]
[1763261291385,0.3258675,3204.8,3204.3,3.2078]
[1763261291583,0.04339789,3204.6,3204.3,3.2078]
[1763261291779,0.04339789,3204.6,3201.1,12.33664]
[1763261291780,0.2905,3203.2,3203.1,3.2078]
[1763261292082,0.34111204,3203.2,3203.1,3.21101655]
[1763261292585,0.3483262,3203.2,3203.1,3.21101655]
[1763261293085,9.56334036,3203.2,3202.8,0.0046834]
[1763261293269,0.35554036,3203.2,3202.8,0.0046834]
[1763261293474,3.2078,3202.9,3202.8,0.0046834]
[1763261293684,0.07225288,3203.0,3202.8,0.0046834]
[1763261293883,0.10135005,3202.9,3202.8,0.0046834]
[1763261294076,3.31187462,3202.9,3201.8,3.2078]
[1763261294278,3.31187462,3202.9,3200.1,11.254]
[1763261294279,0.3954,3202.4,3202.2,3.2078]
[1763261294482,0.13044722,3202.4,3202.2,3.2078]
[1763261294782,0.15954439,3202.3,3202.2,3.2078]
[1763261295179,0.15954439,3202.3,3202.2,3.21090302]
[1763261295378,0.18864156,3202.3,3202.2,3.21090302]
[1763261295789,0.21773873,3202.3,3202.2,3.21090302]
[1763261296275,0.24680792,3202.3,3202.2,3.21090302]
[1763261296675,0.24680792,3202.3,3202.2,0.00310302]
[1763261297181,0.27590509,3202.3,3202.2,3.21090302]
[1763261297883,0.3954,3202.4,3202.2,3.21090302]
[1763261298185,0.30500226,3202.3,3202.2,3.21090302]
[1763261298381,0.33409943,3202.3,3202.2,3.21090302]
[1763261298786,0.3631966,3202.3,3202.2,3.21090302]
[1763261299287,0.39226519,3202.3,3202.2,3.21090302]
[1763261299787,0.42133376,3202.3,3202.2,3.21090302]
[1763261300184,0.43091821,3202.3,3202.2,3.21090302]
[1763261300387,0.44050266,3202.3,3202.2,3.21090302]
[1763261301091,6.44050266,3202.3,3201.9,0.0046834]
[1763261301290,0.3954,3201.6,3201.4,3.2078]
[1763261301479,0.3954,3200.8,3200.5,3.2078]
[1763261301877,0.45502132,3200.7,3200.5,3.2078]
[1763261302081,0.45502132,3200.7,3200.5,3.21067471]
[1763261302484,6.45502132,3200.7,3200.3,0.0046834]
[1763261302684,3.2078,3200.4,3200.3,0.0046834]
[1763261303089,3.2078,3200.4,3199.6,3.2078]
[1763261303090,25.41382132,3200.4,3199.6,3.2078]
[1763261303294,0.3954,3200.0,3199.6,3.2078]
[1763261303593,0.39788963,3200.0,3199.6,3.21146584]
[1763261304088,0.45502132,3199.8,3199.6,3.21146584]
[1763261304586,0.3954,3200.8,3199.6,9.21146584]
[1763261304787,0.0046834,3200.9,3200.7,3.2078]
[1763261305583,0.00709834,3200.9,3200.7,3.2078]
[1763261308693,0.00709834,3200.9,3200.8,0.04301717]
[1763261312794,0.3954,3201.6,3200.8,0.04301717]
[1763261313097,0.3954,3201.6,3201.5,3.2078]
[1763261313691,0.00333513,3201.6,3201.5,3.25081717]
[1763261315299,0.0046834,3201.9,3201.5,3.25081717]
[1763261315699,0.0046834,3201.9,3201.7,0.04301717]
[1763261315899,0.417,3201.8,3201.7,0.04301717]
[1763261316098,0.41949357,3201.8,3201.7,0.04301717]
[1763261316598,6.41949357,3201.8,3201.2,0.0046834]
[1763261316804,0.41949357,3201.8,3201.2,0.0046834]
[1763261316995,0.6434,3201.3,3201.2,0.0046834]
[1763261317498,15.722,3201.3,3201.2,0.0046834]
[1763261317899,0.41949357,3201.8,3201.2,0.0046834]
[1763261318107,15.717,3201.7,3201.2,0.0046834]
[1763261318603,15.716,3201.6,3201.2,0.0046834]
[1763261319107,0.6434,3201.3,3201.2,0.0046834]
[1763261320105,3.2078,3200.5,3199.2,1.07964]
[1763261320305,3.2078,3199.7,3199.0,0.396]
[1763261321002,3.2124834,3199.7,3199.0,0.4006834]
[1763261321204,3.2124834,3199.7,3199.0,0.40464165]
[1763261323103,3.2078,3200.1,3199.7,0.396]
[1763261323310,3.2078,3200.6,3200.4,0.396]
[1763261323511,3.2078,3201.1,3200.4,0.396]
[1763261324203,0.0046834,3201.1,3200.4,0.4006834]
[1763261326015,3.2078,3200.6,3200.4,0.0046834]
[1763261326412,3.2124834,3201.1,3200.4,0.0046834]
[1763261327309,3.5414834,3201.1,3200.4,0.0046834]
[1763261327513,3.2078,3200.6,3199.8,3.2078]
[1763261328523,3.2078,3200.6,3199.9,0.0046834]
[1763261329324,2.2078,3200.6,3199.9,0.0046834]
[1763261333229,0.0046834,3201.1,3200.4,0.396]
[1763261333523,0.41949357,3201.8,3201.0,3.2078]
[1763261333718,0.41949357,3201.8,3201.5,3.2078]
[1763261334027,0.41949357,3201.8,3201.5,3.21004897]
[1763261334222,0.41949357,3201.8,3201.6,0.04303434]
[1763261335114,0.41949357,3201.8,3201.6,3.2078]
[1763261335518,0.41949357,3201.8,3201.5,0.00224897]
[1763261337016,0.6434,3201.6,3201.5,0.00224897]
[1763261338028,0.417,3201.1,3200.2,4.28744]
[1763261338226,0.417,3201.1,3200.7,3.2078]
[1763261339018,0.417,3201.1,3200.7,3.21104062]
[1763261339416,0.6434,3200.8,3200.7,3.21104062]
[1763261340626,0.8904,3200.3,3199.9,0.0046834]
[1763261340817,3.2078,3200.8,3199.9,0.0046834]
[1763261341628,3.2078,3200.8,3200.2,3.2078]
[1763261341829,3.2078,3201.2,3200.2,3.2078]
[1763261342421,3.2078,3201.2,3200.6,3.2078]
[1763261342622,3.21029357,3201.8,3201.1,1.3909]
[1763261343430,0.02901393,3201.5,3201.0,3.2078]
[1763261343734,0.02901393,3201.5,3201.1,3.2078]
[1763261344032,0.02901393,3201.5,3201.1,3.7245]
[1763261344331,0.02901393,3201.5,3200.4,0.5167]
[1763261344332,0.8904,3201.2,3200.6,3.2078]
[1763261344531,0.02901393,3200.9,3200.6,3.2078]
[1763261344839,0.02821393,3200.9,3200.6,3.2078]
[1763261345134,4.0982,3200.7,3200.1,3.2078]
[1763261345837,0.8904,3200.0,3199.9,0.00853776]
[1763261346231,0.8904,3200.0,3198.7,1.07964]
[1763261346232,6.0,3200.0,3198.7,3.2078]
[1763261346437,3.2078,3199.4,3198.7,3.2078]
[1763261346936,0.02821393,3199.1,3198.7,3.2078]
[1763261347129,0.03108401,3199.1,3198.7,3.21174534]
[1763261347636,0.00287008,3199.1,3198.9,0.01480324]
[1763261347836,3.2078,3199.0,3198.9,0.01480324]
[1763261349736,4.0982,3199.0,3198.9,0.01480324]
[1763261350728,0.8904,3198.8,3198.7,0.03520853]
[1763261350929,9.6248,3199.0,3198.6,0.0046834]
[1763261350930,0.8904,3198.7,3198.6,0.0046834]
[1763261351125,22.6454,3198.7,3197.7,3.2078]
[1763261351330,3.2078,3198.3,3197.7,3.2078]
[1763261351828,3.2078,3198.8,3197.7,3.21036705]
[1763261352028,15.756,3198.7,3197.7,3.21036705]
[1763261352238,0.0046834,3198.6,3197.9,0.0046834]
[1763261353735,4.94,3198.5,3197.9,0.0046834]
[1763261354235,3.2078,3198.3,3197.9,0.0046834]
[1763261355135,10.6276834,3198.6,3198.0,0.5199]
[1763261356044,3.2078,3198.3,3197.9,0.0046834]
[1763261357144,0.02290371,3198.1,3197.9,0.0046834]
[1763261358044,0.02290371,3198.0,3197.9,0.8473834]
[1763261358343,0.04907942,3198.0,3197.9,0.8473834]
[1763261358844,0.07525513,3198.0,3197.9,0.0046834]
[1763261359043,0.0046834,3198.6,3198.5,0.8427]
[1763261359243,0.03085911,3198.6,3198.5,0.8427]
[1763261359743,0.03085911,3198.6,3198.0,0.5199]
[1763261360329,0.02617571,3198.3,3197.9,0.0046834]
[1763261360535,0.02617571,3198.3,3198.2,0.8427]
[1763261361139,0.05227416,3198.3,3198.2,0.8427]
[1763261361651,0.07837352,3198.3,3198.2,0.8427]
[1763261362143,0.07837352,3198.3,3198.0,0.5199]
[1763261362636,0.07837352,3198.2,3198.0,0.5199]
[1763261363248,0.07837352,3198.2,3197.9,0.0046834]
[1763261363636,0.08422158,3198.1,3197.9,0.0046834]
[1763261364035,0.09005638,3198.0,3197.9,0.0046834]
[1763261364941,0.09590504,3198.0,3197.9,0.0046834]
[1763261365331,0.09590504,3198.0,3197.9,0.8473834]
[1763261365841,0.10175392,3198.0,3197.9,0.8473834]
[1763261366038,0.10760281,3198.0,3197.9,0.8473834]
[1763261366840,0.10760281,3198.0,3197.9,0.0046834]
[1763261367145,0.98310281,3198.0,3197.9,0.0046834]
[1763261367934,0.8755,3198.0,3197.9,0.0046834]
[1763261368247,0.98628246,3198.0,3197.9,0.0046834]
[1763261368650,0.11078246,3198.0,3197.9,0.0046834]
[1763261369852,0.93488246,3198.0,3197.9,0.0046834]
[1763261370545,4.14268246,3198.0,3197.9,0.0046834]
[1763261370947,4.33948246,3198.0,3197.9,0.0046834]
[1763261371148,0.8241,3197.8,3197.7,0.00256705]
[1763261372150,0.93488246,3197.8,3197.7,0.00256705]
[1763261376844,0.11078246,3197.8,3197.7,0.82136705]
[1763261379748,0.0046834,3198.6,3197.7,0.82136705]
[1763261380058,0.0046834,3198.6,3197.9,3.2078]
[1763261380256,0.0046834,3198.6,3198.5,0.8188]
[1763261382357,0.8287834,3198.6,3198.3,4.02426472]
[1763261382549,0.0046834,3198.6,3198.3,3.2078]
[1763261382947,0.0046834,3198.6,3198.5,0.8188]
[1763261384156,0.0046834,3198.6,3198.5,1.63526472]
[1763261385859,0.0046834,3198.6,3198.5,7.63526472]
[1763261386161,0.0046834,3198.6,3198.5,1.63526472]
[1763261386358,0.0046834,3198.6,3198.5,0.8188]
[1763261386864,0.0046834,3198.6,3198.3,4.0266]
[1763261387063,15.6766834,3198.6,3198.3,4.0266]
[1763261387359,0.0046834,3198.6,3198.5,0.8188]
[1763261387752,0.0046834,3198.6,3198.3,3.2078]
[1763261387953,0.8241,3198.4,3198.3,3.2078]